Cogmind - Beta 16.1 @@@ ROGUE MODE // 2026.01.04 @ 01:04:53 Player: JuustuToug Result: Destroyed by S-43 Plague with Heavy Machine Gun Performance ------------- Evolutions (7) 3500 Regions Visited (7) 1400 Robots Destroyed (60) 300 Value Destroyed (1909) 1909 Prototype IDs (8) 160 Alien Tech Used (0) 0 Bonus (852) 852 TOTAL SCORE: 8121 Bonus ------- Follower Combat Kills 52 Registered with UFD 300 Met Optimus in HQ 500 Cogmind --------- Core Integrity 0/1300 Matter 258/300 Energy 96/100 System Corruption 2% Temperature Cool (0) Movement Flying (45) Location -3/Research Parts ------- > --- POWER (2) -------- (None) > --- PROPULSION (5) --- Impulse Thruster Array > --- UTILITY (10) ----- Advanced Targeting Computer Graphene Brace Improved System Shield A0-MCA's Component Scanner > --- WEAPON (4) ------- (None) > --- INVENTORY (5) ---- Light Antimatter Reactor Light Particle Reactor Improved Transmission Jammer Matter Neutralizer Hypervelocity Railgun Peak State ------------ > --- POWER ------------ Neutrino Core > --- PROPULSION ------- Improved Treads Armored Medium Treads Heavy Treads > --- UTILITY ---------- Large Storage Unit Precision Energy Filter Layered Heavy Armor Plating Improved Hacking Suite Advanced Hacking Suite Advanced Hacking Suite Improved System Shield > --- WEAPON ----------- Hammer Hammer Spear > --- INVENTORY -------- Light Deuterium Engine Reinforced Deuterium Engine Improved Actuator Array Improved Transmission Jammer Layered Light Armor Plating Medium Reflective Plating Improved Focal Shield A0-MCA's Component Scanner High-powered Tractor Beam Improved Recalibrator Tesla Bomb Launcher Heavy Rocket Launcher CPS Tube Vortex Trap [Rating: 80] Favorites ----------- Power Nuclear Core Engine Ion Engine Power Core Nuclear Core Reactor Light Particle Reactor Propulsion Light Treads Treads Light Treads Leg Aluminum Leg Hover Unit Gyrokinetic Inverter Flight Unit Field Propulsion Drive Utility Large Storage Unit Device Structural Scanner Storage Large Storage Unit Processor Improved Signal Interpreter Hackware Advanced Hacking Suite Protection Layered Medium Armor Plating Weapon Hammer Energy Gun Medium Laser Ballistic Gun Light Assault Rifle Ballistic Cannon Light Cannon Launcher Tesla Bomb Launcher Impact Weapon Hammer Piercing Weapon Spear Build | -11 -10 -10 -7 -7 -5 -4 -3 ------- Run | Yrd Mat Sub Rec Scr Fac Fac Res Slots Evolved 14 | . . . . . 10 2 2 Power 1 | . . . . . . . 1 Propulsion 3 | . . . . . 2 . 1 Utility 8 | . . . . . 6 2 . Weapon 2 | . . . . . 2 . . Parts Attached 70 | 9 8 5 3 3 31 4 7 Power 7 | 1 1 . 1 . 3 . 1 Engine 4 | 1 1 . . . 2 . . Core 2 | . . . 1 . 1 . . Reactor 1 | . . . . . . . 1 Propulsion 24 | 2 3 1 2 1 9 4 2 Treads 10 | 2 2 . 2 1 3 . . Leg 8 | . 1 1 . . 6 . . Wheel . | . . . . . . . . Hover 4 | . . . . . . 4 . Flight 2 | . . . . . . . 2 Utility 26 | 4 1 1 . 1 15 . 4 Device 11 | 3 . 1 . . 5 . 2 Storage 3 | 1 1 . . 1 . . . Processor 4 | . . . . . 2 . 2 Hackware 4 | . . . . . 4 . . Protection 4 | . . . . . 4 . . Artifact . | . . . . . . . . Weapon 13 | 2 3 3 . 1 4 . . Energy Gun 1 | . 1 . . . . . . Energy Cannon . | . . . . . . . . Ballistic Gun 4 | 2 1 1 . . . . . Ballistic Cannon 1 | . . 1 . . . . . Launcher 4 | . 1 . . . 3 . . Special Weapon . | . . . . . . . . Impact Weapon 2 | . . 1 . 1 . . . Slashing Weapon . | . . . . . . . . Piercing Weapon 1 | . . . . . 1 . . Special Melee Weapon . | . . . . . . . . Unidentified Prototypes 2 | . . . . . 2 . . Corrupted Parts 4 | . . . 1 . 3 . . System Corruption 25 | . . . 4 . 21 . . Parts Lost 29 | . 3 2 . . 15 . 9 Power 2 | . . 1 . . 1 . . Propulsion 13 | . 1 1 . . 6 . 5 Utility 10 | . 1 . . . 5 . 4 Weapon 4 | . 1 . . . 3 . . Highest Loss Streak 6 | . 2 2 . . 6 . 6 To Critical Strikes . | . . . . . . . . Average Backups 11 | 2 8 13 13 13 11 5 4 Power . | . . . . . 1 1 1 Propulsion . | . . 1 1 1 . . . Utility 4 | . 2 3 3 5 6 4 1 Weapon 5 | . 4 8 9 6 1 . 1 Tool/Special . | . . . . . . . . Unused Backups 25 | . 3 . . 10 6 1 5 Power 3 | . . . . . 1 . 2 Propulsion 1 | . . . . 1 . . . Utility 8 | . 1 . . 2 3 1 1 Weapon 12 | . 2 . . 7 1 . 2 Tool/Special 1 | . . . . . 1 . . Average Slot Usage (%) 87 | . 99 88 88 87 85 32 42 Engine 3 | . 13 3 . . 2 . . Core 6 | . . . 3 14 1 . . Treads 20 | . 26 17 17 28 9 . . Leg 4 | . . 10 10 . 8 . . Device 13 | . 13 14 14 14 14 . 5 Storage 11 | . 14 14 14 14 4 . . Processor 1 | . . . . . 4 . 6 Hackware 2 | . . . . . 10 21 14 Energy Gun 5 | . 10 14 13 . . . . Ballistic Gun 3 | . 16 12 . . . . . Impact Weapon 10 | . . 2 14 15 10 . . Peak Build Rating 80 | 9 10 12 13 17 80 49 80 Average Rating 21 | 5 8 9 8 14 62 41 57 On Entrance 15 | . 7 10 7 12 17 25 49 Avg Prop Armor Cover (%) 10 | . 8 9 10 . 11 16 8 Naked Turns . | . . . . . . . . Heaviest Build 70 | 14 29 31 32 32 70 . 14 Greatest Support 120 | 40 40 40 40 48 120 33 44 Greatest Overweight (x) 2 | . 1 1 1 . 2 . . Average Overweight (x) . | . . . . . . . . Largest Inventory Capacity 15 | 8 15 15 15 15 15 5 5 Average Capacity 13 | 7 10 15 15 15 14 5 5 Most Carried 15 | 3 13 14 15 15 15 5 5 Average Carried 12 | 2 8 13 13 14 12 5 4 Final Capacity 15 | 8 15 15 15 15 5 5 5 Final Carried 15 | 3 13 13 14 15 5 5 5 Class Distribution -------------------- 79% | Mutant 9% | Hacker-Mutant 3% | Scavenger-Gladiator 3% | Hacker-Gladiator Dominant Class ---------------- Mutant | -10/Materials Mutant | -10/Subcaves Mutant | -7/Recycling Mutant | -7/Scraptown Hacker-Mutant | -5/Factory Hacker-Mutant | -4/Factory Hacker-Mutant | -3/Research Resources | -11 -10 -10 -7 -7 -5 -4 -3 ----------- Run | Yrd Mat Sub Rec Scr Fac Fac Res Matter Collected 1194 | 386 249 108 20 40 391 . . Remotely 171 | 171 . . . . . . . Salvage Created 2522 | 235 728 150 219 . 1190 . . Parts 119 | 21 41 9 4 . 44 . . Haulers Intercepted 2 | . 2 . . . . . . Recyclers Shooed 2 | . 1 . . . 1 . . Parts Field Recycled . | . . . . . . . . Retrieved Matter . | . . . . . . . . Parts Self-Destructed 9 | . . 9 . . . . . Prevented . | . . . . . . . . Parts Restored . | . . . . . . . . Kills | -11 -10 -10 -7 -7 -5 -4 -3 ------- Run | Yrd Mat Sub Rec Scr Fac Fac Res Combat Hostiles Destroyed 43 | . 17 6 1 . 19 . . Melee 13 | . 1 . . . 12 . . Guns 20 | . 15 5 . . . . . AOE 5 | . 1 . . . 4 . . Classes Destroyed 13 | 2 5 2 1 . 3 . . Builder 3 | . 1 . 2 . . . . Tunneler 7 | 6 . . . . 1 . . Hauler 2 | . 2 . . . . . . Recycler 4 | 1 . . 2 . 1 . . Watcher 1 | . 1 . . . . . . Swarmer 11 | . 3 4 . . 4 . . Grunt 23 | . 14 . . . 9 . . Sentry 4 | . . . 1 . 3 . . Hunter 1 | . . . . . 1 . . Programmer 1 | . . . . . 1 . . Behemoth 1 | . . . . . 1 . . Artisan 1 | . . 1 . . . . . Subdweller 2 | . . 2 . . . . . Best Kill Streak 4 | 2 3 4 2 . 4 . . Combat Bots Only 4 | . 3 4 1 . 4 . . Max Kills in Single Turn 4 | 1 1 2 1 . 4 . . Gunslinging 1 | . . 1 . . . . . Exploded 4 | . 1 . . . 4 . . Melee 1 | . 1 . . . 1 . . Uniques/NPCs Destroyed . | . . . . . . . . Combat | -11 -10 -10 -7 -7 -5 -4 -3 -------- Run | Yrd Mat Sub Rec Scr Fac Fac Res Hostile Shots Fired 625 | . 81 32 27 . 314 30 141 Missed 184 | . 19 7 8 . 85 8 57 Hits 441 | . 62 25 19 . 229 22 84 Projectile 441 | . 62 25 19 . 229 22 84 AOE 2 | . . . . . 2 . . Critical Strikes 13 | . 2 . . . 5 1 5 Actively Blocked 5 | . . . . . . . 5 Part Disruptions 2 | . . . . . 2 . . Damage Taken 7534 | . 714 304 146 . 4217 449 1704 Core 2434 | . 117 55 28 . 570 343 1321 Absorbed by Shields 184 | . . . . . 184 . . Ignored by Resistances 78 | . . . . . 78 . . Core Remaining (%) 58 | 100 . . . 20 43 70 . Volleys Fired 106 | 24 67 12 . . 3 . . Largest 2 | 2 2 2 . . 1 . . Hottest 78 | 40 70 78 . . 46 . . Shots Fired 204 | 48 129 24 . . 3 . . Gun 199 | 48 127 24 . . . . . Cannon . | . . . . . . . . Launcher 5 | . 2 . . . 3 . . Special . | . . . . . . . . Kinetic 131 | 48 71 12 . . . . . Thermal 68 | . 56 12 . . . . . Explosive 3 | . 2 . . . 1 . . Electromagnetic 2 | . . . . . 2 . . Robot Hit Streak 18 | 6 13 18 . . 6 . . Robot Miss Streak 4 | 4 4 2 . . . . . Penetration Max . | . . . . . . . . Secondary Targets 3 | . 1 2 . . . . . Max Gunslinging Chain 1 | . 1 1 . . . . . Shots Hit Robots 240 | 27 88 22 11 . 92 . . Core Hits 97 | 13 39 7 1 . 37 . . Critical Kills . | . . . . . . . . Critical Parts Destroyed 9 | . . 2 3 . 4 . . Critical Strikes 24 | . 8 3 3 . 10 . . Burn 9 | . 8 1 . . . . . Smash 9 | . . 2 3 . 4 . . Impale 6 | . . . . . 6 . . Melee Attacks 167 | . . 14 25 . 128 . . Impact 67 | . . 14 25 . 28 . . Slashing . | . . . . . . . . Piercing 100 | . . . . . 100 . . Sneak Attacks 11 | . . 1 7 . 3 . . Combat Hostiles . | . . . . . . . . Follow-up Attacks 20 | . . . . . 20 . . Damage Inflicted 4998 | 310 1099 405 422 . 2743 . 19 Guns 1638 | 310 1014 314 . . . . . Cannons . | . . . . . . . . Explosions 350 | . 76 . . . 274 . . Melee 2974 | . . 91 422 . 2461 . . Ramming 36 | . 9 . . . 8 . 19 Kinetic 975 | 310 487 178 . . . . . Thermal 663 | . 527 136 . . . . . Explosive 278 | . 76 . . . 202 . . Electromagnetic 72 | . . . . . 72 . . Impact 945 | . . 91 422 . 432 . . Slashing . | . . . . . . . . Piercing 2029 | . . . . . 2029 . . Highest Corruption 26 | . . . 4 . 26 . 2 Average Corruption 10 | . . . 4 . 14 . 1 Corruption Purged . | . . . . . . . . Corruption Blocked . | . . . . . . . . Effects 27 | . . . 5 . 22 . . Message Errors 8 | . . . 2 . 6 . . Matter Fused 5 | . . . . . 5 . . Heat Flow Errors 3 | . . . 1 . 2 . . Energy Discharges 5 | . . . 1 . 4 . . Data Loss (minor) 3 | . . . 1 . 2 . . Misdirections 3 | . . . . . 3 . . Overload Shots . | . . . . . . . . Overflow Damage 473 | . . 91 220 . 162 . . Projectiles . | . . . . . . . . Explosions . | . . . . . . . . Melee 473 | . . 91 220 . 162 . . Knockbacks 4 | . . . 2 . 2 . . Impact 4 | . . . 2 . 2 . . Kinetic . | . . . . . . . . Secondary . | . . . . . . . . Self-Inflicted Damage 45 | . . . . . 38 . 7 Shots 1 | . . . . . 1 . . Rammed 13 | . 1 . . . 2 . 10 Targets Rammed 15 | . 2 . . . 3 . 10 Kicked 1 | . . . . . 1 . . Crushed 1 | . 1 . . . . . . Highest Temperature 284 | . 156 5 166 . 284 . . Average Temperature 50 | . 42 4 82 . 110 . . Received Heat Transfer 1703 | . 390 90 42 . 983 66 132 Siege Activations . | . . . . . . . . Martial Activations . | . . . . . . . . Shielding Activations . | . . . . . . . . Robots Disrupted . | . . . . . . . . Combat Hostiles . | . . . . . . . . Robots Corrupted 6 | . . 1 2 . 3 . . Combat Hostiles 5 | . . 1 1 . 3 . . Parts Fried 12 | . . 2 8 . 2 . . Impact Corruptions 16 | . . 3 8 . 5 . . Robots Melted . | . . . . . . . . Combat Hostiles . | . . . . . . . . Parts Melted 9 | . 7 2 . . . . . Heat Transferred 2627 | . 2146 481 . . . . . Parts Sabotaged . | . . . . . . . . Parts Stolen . | . . . . . . . . Parts Stripped . | . . . . . . . . Power Chain Reactions . | . . . . . . . . Alert | -11 -10 -10 -7 -7 -5 -4 -3 ------- Run | Yrd Mat Sub Rec Scr Fac Fac Res Maximum Alert Level 1 | . . . . . 1 . . Low Security (%) 98 | 100 100 . 100 . 96 100 100 Level 1 1 | . . . . . 3 . . Level 2 . | . . . . . . . . Level 3 . | . . . . . . . . Level 4 . | . . . . . . . . Level 5 . | . . . . . . . . High Security . | . . . . . . . . Max Security . | . . . . . . . . Peak Influence 332 | 10 187 . 58 . 332 167 78 Initial 156 | . . . 3 . . 156 78 Average 52 | 1 72 . 9 . 84 153 44 Influence Increases 1823 | 35 519 125 215 . 805 34 90 Destroy 0b10 Robot/C 840 | . 340 80 20 . 400 . . Destroy 0b10 Robot/NC 85 | 35 20 . 20 . 10 . . Destroy Leader 166 | . 86 . . . 80 . . Allied During Kill 25 | . . . . . 25 . . Successful Hack 92 | . 13 . 47 . 13 19 . Select Force Hacks 120 | . . . 120 . . . . Anti-Garrison Action 150 | . . . . . 150 . . Destroy Structure 45 | . 15 . 8 . 22 . . Lose Combat Pursuer 300 | . 45 45 . . 105 15 90 Influence Decreases 1793 | 35 360 277 203 19 485 204 210 Entered New Map 336 | . . 77 4 19 . 164 72 Time Decay 1199 | 35 330 180 199 . 335 40 80 Lost Part 238 | . 30 20 . . 130 . 58 Lost Ally 20 | . . . . . 20 . . Squads Dispatched 16 | . 4 . . . 9 . 3 Investigation 5 | . 1 . . . 1 . 3 Extermination 1 | . . . . . 1 . . Reinforcement 6 | . 3 . . . 3 . . Assault 4 | . . . . . 4 . . Garrison . | . . . . . . . . Intercept . | . . . . . . . . Searches Triggered . | . . . . . . . . Construction Impeded . | . . . . . . . . Haulers Reinforced . | . . . . . . . . Active Scanning Responses . | . . . . . . . . Cargo Convoy Interrupts 1 | . . . . . 1 . . Stealth | -11 -10 -10 -7 -7 -5 -4 -3 --------- Run | Yrd Mat Sub Rec Scr Fac Fac Res Distress Signals 3 | . 1 . . . 1 . 1 Communications Jammed . | . . . . . . . . Distress Signals . | . . . . . . . . Times Spotted 107 | . 26 11 1 . 48 4 17 Peak Tracking Total 16 | . 3 4 1 . 16 3 11 Tactical Retreats 11 | . 3 2 . . 3 1 2 Traps | -11 -10 -10 -7 -7 -5 -4 -3 ------- Run | Yrd Mat Sub Rec Scr Fac Fac Res Traps Triggered 3 | . 1 . . . . . 2 Indirectly . | . . . . . . . . Trap Hack Attempts . | . . . . . . . . Triggered . | . . . . . . . . Disarmed . | . . . . . . . . Reprogrammed . | . . . . . . . . Reused . | . . . . . . . . Traps Extracted . | . . . . . . . . Installed . | . . . . . . . . Triggered . | . . . . . . . . Most Traps Carried 1 | . . . . 1 1 . . Machines | -11 -10 -10 -7 -7 -5 -4 -3 ---------- Run | Yrd Mat Sub Rec Scr Fac Fac Res Machines Disabled 1 | . . . . . 1 . . Max in Single Turn 1 | . . . . . 1 . . Garrison Access 2 | . . . . . 2 . . Machines Repaired . | . . . . . . . . Machines Dismantled . | . . . . . . . . Machines Sabotaged . | . . . . . . . . Overloaded Fab Kills . | . . . . . . . . Hacking | -11 -10 -10 -7 -7 -5 -4 -3 --------- Run | Yrd Mat Sub Rec Scr Fac Fac Res Machines Accessed 31 | . 4 . 10 6 6 2 3 Terminals 16 | . 4 . 5 . 4 1 2 Fabricators 1 | . . . . . 1 . . Repair Stations . | . . . . . . . . Recycling Units 4 | . . . 4 . . . . Scanalyzers . | . . . . . . . . Garrison Access 3 | . . . . . 1 1 1 Total Hacks 74 | . 10 . 17 12 12 13 10 Successful 45 | . 5 . 13 12 4 9 2 Failed 29 | . 5 . 4 . 8 4 8 Catastrophic 4 | . . . . . 4 . . Database Lockouts . | . . . . . . . . Manual 49 | . 10 . 15 . 6 10 8 Terminals 43 | . 10 . 11 . 7 10 5 Fabricators 2 | . . . . . 2 . . Repair Stations . | . . . . . . . . Recycling Units 4 | . . . 4 . . . . Scanalyzers . | . . . . . . . . Garrison Access 11 | . . . . . 3 3 5 Terminal Hacks 22 | . . . 2 12 2 5 1 Record 7 | . . . 2 5 . . . Robot Analysis 6 | . . . . 6 . . . Level Access Points 2 | . . . . . 1 1 . Terminal Index 2 | . . . . . 1 1 . Alert Level 1 | . . . . . . 1 . Registered Components 2 | . . . . . . 1 1 Registered Prototypes 1 | . . . . . . 1 . Proto ID Catalog 1 | . . . . 1 . . . Fabricator Hacks . | . . . . . . . . Repair Station Hacks . | . . . . . . . . Recycling Unit Hacks . | . . . . . . . . Scanalyzer . | . . . . . . . . Garrison Access Hacks . | . . . . . . . . Unauthorized Hacks 23 | . 5 . 11 . 2 4 1 Terminals 15 | . 5 . 7 . 1 1 1 Botnet 6 | . 1 . 2 . 1 1 1 Operators 1 | . 1 . . . . . . Skim 8 | . 3 . 5 . . . . Fabricators 1 | . . . . . 1 . . Liberate 1 | . . . . . 1 . . Repair Stations . | . . . . . . . . Recycling Units 4 | . . . 4 . . . . Tunnel 4 | . . . 4 . . . . Scanalyzers . | . . . . . . . . Garrison Access 3 | . . . . . . 3 . Restock 1 | . . . . . . 1 . Reprogram 1 | . . . . . . 1 . Watchers 1 | . . . . . . 1 . Data Cores Recovered . | . . . . . . . . Used . | . . . . . . . . Hacking Detections 19 | . 4 . 5 . 6 1 3 Full Trace Events 4 | . 1 . . . 1 . 2 Feedback Events 1 | . . . . . . . 1 Hackware Fried 1 | . . . . . . . 1 Feedback Blocked . | . . . . . . . . Robot Schematics Acquired . | . . . . . . . . Robots Built . | . . . . . . . . Authchips . | . . . . . . . . Time . | . . . . . . . . Total Robot Build Rating . | . . . . . . . . Part Schematics Acquired . | . . . . . . . . Parts Built . | . . . . . . . . Authchips . | . . . . . . . . Time . | . . . . . . . . Total Part Build Rating . | . . . . . . . . Part Studies Acquired . | . . . . . . . . Parts Repaired . | . . . . . . . . Time . | . . . . . . . . Parts Recycled . | . . . . . . . . Recycled Matter . | . . . . . . . . Retrieved Matter . | . . . . . . . . Retrieved Components . | . . . . . . . . Parts Scanalyzed . | . . . . . . . . Part Schematics Acquired . | . . . . . . . . Parts Damaged . | . . . . . . . . Bothacking | -11 -10 -10 -7 -7 -5 -4 -3 ------------ Run | Yrd Mat Sub Rec Scr Fac Fac Res Used RIF Installer . | . . . . . . . . Robots Hacked . | . . . . . . . . Non-combat . | . . . . . . . . Combat . | . . . . . . . . Robot Hacks Applied . | . . . . . . . . Relay Couplers Released 2 | . . . . . 2 . . Machine Destruction 2 | . . . . . 2 . . Fabnet Peak Effective % . | . . . . . . . . Robots Rewired . | . . . . . . . . Allies Hacked 1 | . . . . . 1 . . Hacks Repelled . | . . . . . . . . Allies | -11 -10 -10 -7 -7 -5 -4 -3 -------- Run | Yrd Mat Sub Rec Scr Fac Fac Res Total Allies 3 | . . . . . 3 . . Largest Group 3 | . . . . . 3 . . Highest-Rated Group 87 | . . . . . 87 . . Highest-Rated Ally 29 | . . . . . 29 . . Initial UFD Resources 45 | . . . . . 38 42 45 Total Orders . | . . . . . . . . Ally Attacks 42 | . . . . . 42 . . Total Damage 600 | . . . . . 600 . . Kills 1 | . . . . . 1 . . Allies Corrupted . | . . . . . . . . Allies Melted . | . . . . . . . . Intel | -11 -10 -10 -7 -7 -5 -4 -3 ------- Run | Yrd Mat Sub Rec Scr Fac Fac Res Active Infowar (turns) 7388 | 13 1268 542 1470 2753 1342 . . Optics 505 | . . . . . 505 . . Terrain 952 | 2 606 344 . . . . . Structural 5763 | . . 198 1470 2753 1342 . . Seismic 673 | 11 662 . . . . . . Robot Analysis Total 6 | . . . . 6 . . . Derelict Logs Recovered . | . . . . . . . . Drone Launches . | . . . . . . . . Drone Recoveries . | . . . . . . . . Exploration | -11 -10 -10 -7 -7 -5 -4 -3 ------------- Run | Yrd Mat Sub Rec Scr Fac Fac Res Turns Passed 7943 | 249 1278 542 1470 2753 1364 82 205 Spaces Moved 4277 | 107 543 139 650 1690 626 149 373 Core 400 | 11 . . . . 66 146 177 Treads 3509 | 96 543 139 650 1690 391 . . Legs 169 | . . . . . 169 . . Wheels . | . . . . . . . . Hover 36 | . . . . . . 3 33 Flight 163 | . . . . . . . 163 Fastest Speed 45 | 50 160 160 165 160 50 50 45 Average Speed 156 | 148 163 208 214 161 156 50 48 Slowest Speed 330 | 160 240 240 240 165 330 70 70 Overloaded Moves . | . . . . . . . . Propulsion Burnouts . | . . . . . . . . Robots Hopped . | . . . . . . . . Potential Cave-ins 1 | . . 1 . . . . . Cave-ins Triggered . | . . . . . . . . Exploration Rate (%) 41 | 6 94 8 98 84 19 4 16 Regions Visited 7 Branch Regions 3 Pre-discovered Areas 4 | . . . 4 . . . . Known Exits Taken 2 | . . . . . 1 1 . Unknown Exits Taken 5 | 1 1 1 1 1 . . . Scrap Searched 5 | . . 1 . 4 . . . Spaces Dug 25 | . . 4 8 . 13 . . Terrain Destroyed 41 | . 16 4 8 . 13 . . Melee 15 | . . 4 8 . 3 . . Projectile . | . . . . . . . . AOE 26 | . 16 . . . 10 . . Terrain Rammed . | . . . . . . . . Walls Destroyed . | . . . . . . . . Machines Disabled . | . . . . . . . . Actions | -11 -10 -10 -7 -7 -5 -4 -3 --------- Run | Yrd Mat Sub Rec Scr Fac Fac Res Total 5151 | 151 808 342 682 1729 890 154 395 Wait 424 | 7 160 172 . . 85 . . Move 4270 | 106 542 138 649 1689 625 148 373 Hop . | . . . . . . . . Pick Up 58 | 2 17 1 2 17 15 1 3 Fast Attach 40 | 9 5 . 2 2 14 4 4 Attach 22 | . 2 1 . . 16 . 3 Detach 5 | 1 . . . . 3 . 1 Swap 17 | . 6 4 1 2 4 . . Drop 55 | 2 7 . 3 19 22 1 1 Fire 106 | 24 67 12 . . 3 . . Melee 139 | . . 14 25 . 100 . . Ram 12 | . . . . . 2 . 10 Kick 1 | . . . . . 1 . . Crush 2 | . 2 . . . . . . Escape Stasis . | . . . . . . . . Rewire . | . . . . . . . . Trap . | . . . . . . . . Miscellaneous . | . . . . . . . . Route ------- -11/Scrapyard -10/Materials (discovered 6 exits: [*Mat x3] / [*Min x2] / [*Sub]) -10/Subcaves -7/Recycling (discovered 2 exits: *Fac / *Scr) -7/Scraptown (discovered 2 exits: *Fac x2) -5/Factory (discovered 4 exits: *Fac x4) -4/Factory (discovered 4 exits: *Res x4) -3/Research History --------- Turn | Location | Event 12 | -11/Scrapyard | Discovered new exit (range 16) 250 | -11/Scrapyard | Entered Materials 317 | -10/Materials | Build established: Mutant 345 | -10/Materials | Discovered new exit (range 10) 584 | -10/Materials | Discovered new exit (range 15) 833 | -10/Materials | Discovered new exit (range 6) 995 | -10/Materials | Discovered new exit (range 15) 1360 | -10/Materials | Discovered new exit (range 3) 1381 | -10/Materials | Discovered new exit (range 12) 1528 | -10/Materials | Entered Subcaves 1631 | -10/Subcaves | Core integrity fell below 50% 1670 | -10/Subcaves | Discovered new exit (range 14) 2012 | -10/Subcaves | Ambushed by angry Subdweller bent on revenge 2070 | -10/Subcaves | Entered Recycling 2769 | -7/Recycling | Discovered new exit (range 5) 2948 | -7/Recycling | Learned location of 1 exit from Lower Caves 3023 | -7/Recycling | Learned Factory trap positions 3090 | -7/Recycling | Learned Hub_04(d) emergency access door positions 3145 | -7/Recycling | Learned Extension trap positions 3190 | -7/Recycling | Learned Extension garrison access intel 3223 | -7/Recycling | Learned location of 1 exit from Hub_04(d) 3244 | -7/Recycling | Learned location of 1 exit from Upper Caves 3273 | -7/Recycling | Learned 2 Lower Caves zone layouts 3311 | -7/Recycling | Learned 2 Lower Caves zone layouts 3357 | -7/Recycling | Learned location of 1 exit from Cetus 3501 | -7/Recycling | Scanned before Scraplab entrance 3520 | -7/Recycling | Discovered new exit (range 11) 3525 | -7/Recycling | Entered Scraplab 3540 | -7/Recycling | Entered Scraptown 3540 | -7/Scraptown | System corruption cleaned by C-Scrubber 4137 | -7/Scraptown | Discovered new exit (range 11) 4271 | -7/Scraptown | Visited CR-KLE's Repair Center 4296 | -7/Scraptown | Visited Shadow of the Wyrm 4311 | -7/Scraptown | Visited Assassins FH 4348 | -7/Scraptown | Visited Comm Corps 4436 | -7/Scraptown | Visited Cyclists 4479 | -7/Scraptown | Visited CPS Storage 4551 | -7/Scraptown | Visited TADAMA 4591 | -7/Scraptown | Visited UFD Registry 4591 | -7/Scraptown | Registered with UFD as "Steelrunner" 4628 | -7/Scraptown | Entered Cyclist Reading Room 4704 | -7/Scraptown | Visited Scrap Suit Storage 4727 | -7/Scraptown | Visited Chapter 10 4749 | -7/Scraptown | Visited LU-1G1's Boring Crew 4860 | -7/Scraptown | Visited Observation Area 4884 | -7/Scraptown | Visited Analyses Database 4919 | -7/Scraptown | Visited A0-MCA Data Center 4928 | -7/Scraptown | Given a C+ rating by A0-MCA 4951 | -7/Scraptown | Found A0-MCA's Component Scanner 4983 | -7/Scraptown | Visited Junk Repository 5082 | -7/Scraptown | Visited Science Guys 5142 | -7/Scraptown | Visited Cartography Club 6197 | -7/Scraptown | Met Optimus 6197 | -7/Scraptown | Accepted into 0bPrime 6287 | -7/Scraptown | Discovered new exit (range 5) 6293 | -7/Scraptown | Entered Factory 6293 | -5/Factory | Evolved 10 slots: Propulsion x2, Utility x6, Weapon x2 6294 | -5/Factory | Loaded intel: 96 trap records 6412 | -5/Factory | Found Prototype Launcher 6412 | -5/Factory | Identified Tesla Bomb Launcher 6821 | -5/Factory | Build established: Scavenger-Gladiator 6833 | -5/Factory | Found Tesla Bomb Launcher 7038 | -5/Factory | Spotted B-75 Beast 7057 | -5/Factory | Destroyed B-75 Beast 7092 | -5/Factory | P-70 Sage assimilated allied G-50 Soldier 7112 | -5/Factory | Lost 4 parts (1n3u) 7172 | -5/Factory | Identified exit to Factory 7265 | -5/Factory | System corruption reached 10% 7388 | -5/Factory | Cargo convoy interrupted 7456 | -5/Factory | Build established: Hacker-Mutant 7552 | -5/Factory | Lost 3 parts (2n1u) 7652 | -5/Factory | Core integrity fell below 50% 7657 | -5/Factory | Entered another Factory area 7657 | -4/Factory | Evolved 2 slots: Utility x2 7672 | -4/Factory | Identified exit to Research 7686 | -4/Factory | Lost 6 parts (3n1u2w) 7739 | -4/Factory | Entered Research 7739 | -3/Research | Evolved 2 slots: Power x1, Propulsion x1 7835 | -3/Research | Adv. Hacking Suite fried by hacking feedback 7841 | -3/Research | Spotted B-86 Titan 7899 | -3/Research | Lost 6 parts (3n3u) 7907 | -3/Research | Core integrity fell below 50% 7927 | -3/Research | Core integrity fell below 20% 7944 | -3/Research | Destroyed by S-43 Plague with Heavy Machine Gun Last Messages --------------- Downloaded coordinate data. 07908_ Slammed into K-01 Serf. 07914_ K-01 Serf sends out distress signal. 07915_ Slammed into K-01 Serf. 07915_ Slug penetrates Wall. 07916_ Penetrated by Slug. 07918_ Gyrokinetic Inverter destroyed. 07919_ Slug penetrates Wall. 07919_ Penetrated by Slug. 07921_ Slug penetrates Wall. 07923_ Slammed into K-01 Serf. 07924_ Destabilizing: Core damaged (-65). 07928_ Gyrokinetic Inverter destroyed. 07930_ Triggered Alarm Trap. 07930_ An alarm sounds. 07930_ ALERT: Alarm triggered, dispatching investigation squad. 07931_ Door malfunctions. 07940_ Acquired Impulse Thruster Array. 07942_ Imp. Hacking Suite destroyed. Map ----- +----------------------------------------------------+ | ?????????????????????????????????????????????????? | | ?????????????????????????????????????????????????? | | ?????????????????????????????????????????????????? | | ?????????????????????????????????????????????????? | | ?????????????????????????????????????????????????? | | ?????????????????????????????????????????????????? | | ?????????????????????????????????????????????????? | | ?????????????????????????????????????????????????? | | ?????????????????????????????????????????????????? | | ?????????????????????????????????????????????????? | | ?????????????????????????????????????????????????? | | ?????????????????????????????????????????????????? | | ????????????????????????????????????!????????????? | | ?????????????????????????????????????????????????? | | ?????????????????????????????????????????????????? | | ?????????????????????????????????????????????????? | | ?????????????????????????????????????????????????? | | ?????????????????????????????????????????????????? | | ??????????????????###########????????????????????? | | ??????????????????# #????????????????????? | | ??????????????????# ###################### | | ??????????????????# s# | | ??????????????????# ! sp | | ??????????????????# ! # | | ??????????????????# # !%* | | ??????????????????# @ # ###########/##### | | ??????????????????# ss # #????? ?# # | | ??????????????###########/### # # # | | ?????????? + ?# # | | ?????????? k #????????# + | | ?????????? #????????# # | | ??????????? #????????# # | | ???????????##############+####+###????????# # | | ??????????????????????????????????????????# # | | ??????????????????????????????????????????# + | | ??????????????????????????????????????????# # | | ??????????????????????????????????????????# # | | ??????????????????????????????????????????# # | | ??????????????????????????????????????????# # | | ??????????????????????????????????????????# # | | ??????????????????????????????????????????######## | | ?????????????????????????????????????????????????# | | ?????????????????????????????????????????????????# | | ?????????????????????????????????????????????????? | | ?????????????????????????????????????????????????? | | ?????????????????????????????????????????????????? | | ?????????????????????????????????????????????????? | | ?????????????????????????????????????????????????? | | ?????????????????????????????????????????????????? | | ?????????????????????????????????????????????????? | +----------------------------------------------------+ Best States ------------- Heat Dissipation 46 Energy Generation 23 Energy Capacity 315 Matter Stores 300 Matter Capacity 300 Sight Range 22 Terrain Scan Range 16 Terrain Scan Density 10 Armor Coverage 825 Resistance: TH 15 Melee Speed Boost 40 Evasion (%) 61 Targeting Accuracy 8 Recoil Reduction 4 Energy Filtering 50 Offensive Hacking 40 Defensive Hacking 12 Item Schematics ----------------- None Robot Schematics ------------------ None Fabricated ------------ Nothing Repaired ---------- Nothing Studied --------- None Alien Tech Used ----------------- None Achievements -------------- None Challenges ------------ None Game ------ Seed PoweredAntimissileAutogun Manual? 0 Play Time 00:39:57 Cumulative 287.7 hours Start 2026.01.04 @ 00:24:11 End 2026.01.04 @ 01:04:53 Sessions 1 Manual Loads 0 Difficulty Rogue Special Mode None Game No. 190 Rogue 190 Adventurer 0 Explorer 0 Win Type - Total 10 Types 7/0/1/1/0/0/0/1/0/0 Lore% 91 Gallery% 79 Achievement% 64 Wizard Run 0 Options --------- Layout 1 ASCII 0 Keyboard 0 Movement Mouse Keybinds 0 Fullscreen 2 Font 32/SmallcapsGlow Map View 50x35 Zoom Use 0% Tactical HUD 1 Map Filters NONE Filters NONE Steam 1 RUN: 40786720-16b6-45a1-9636-49740e868506